Cogmind - Beta 14 @@@ ROGUE MODE // 2024.11.02 @ 03:35:26 Player: Miles Result: Self-destructed Performance ------------- Evolutions (2) 1000 Regions Visited (5) 1000 Robots Destroyed (16) 80 Value Destroyed (465) 465 Prototype IDs (1) 20 Alien Tech Used (0) 0 Bonus (0) 0 TOTAL SCORE: 2565 Bonus ------- None Cogmind --------- Core Integrity 134/550 Matter 155/300 Energy 118/250 System Corruption 0% Temperature Cool (10) Movement Core (550) Ox10 Location -8/Materials Parts ------- > --- POWER (1) -------- (None) > --- PROPULSION (4) --- (None) > --- UTILITY (4) ------ Small Storage Unit Large Storage Unit Medium Battery Melee Analysis Suite > --- WEAPON (2) ------- Heavy Particle Gun Heavy Hammer > --- INVENTORY (15) --- Improved Datajack Peak State ------------ > --- POWER ------------ Reinforced Ion Engine > --- PROPULSION ------- Aluminum Leg Aluminum Leg > --- UTILITY ---------- Small Storage Unit Medium Battery Sensor Array Core Analyzer > --- WEAPON ----------- Heavy Particle Gun Heavy Assault Rifle > --- INVENTORY -------- Wheel Wheel Wheel Large Storage Unit Sensor Array Core Analyzer Rocket Launcher Heavy Hammer [Rating: 18] Favorites ----------- Power Ion Engine Engine Ion Engine Propulsion Aluminum Leg Treads Light Treads Leg Aluminum Leg Utility Small Storage Unit Device Sensor Array Storage Small Storage Unit Processor Core Analyzer Weapon Assault Rifle Energy Gun Heavy Particle Gun Ballistic Gun Assault Rifle Launcher Rocket Launcher Special Weapon Mining Laser Impact Weapon Heavy Hammer Build | -11 -10 -10 -10 -9 -8 ------- Run | Yrd Mat Min Exi Min Mat Slots Evolved 4 | . . . . . 4 Power . | . . . . . . Propulsion 2 | . . . . . 2 Utility 2 | . . . . . 2 Weapon . | . . . . . . Parts Attached 38 | 7 4 . 2 3 22 Power 3 | 1 1 . . 1 . Engine 3 | 1 1 . . 1 . Core . | . . . . . . Reactor . | . . . . . . Propulsion 4 | 2 . . . . 2 Treads 2 | . . . . . 2 Leg 2 | 2 . . . . . Wheel . | . . . . . . Hover . | . . . . . . Flight . | . . . . . . Utility 13 | 2 1 . 2 . 8 Device 5 | 1 1 . . . 3 Storage 5 | 1 . . 2 . 2 Processor 3 | . . . . . 3 Hackware . | . . . . . . Protection . | . . . . . . Artifact . | . . . . . . Weapon 18 | 2 2 . . 2 12 Energy Gun 3 | . . . . . 3 Energy Cannon . | . . . . . . Ballistic Gun 7 | 2 1 . . . 4 Ballistic Cannon . | . . . . . . Launcher 4 | . 1 . . 1 2 Special Weapon 1 | . . . . 1 . Impact Weapon 3 | . . . . . 3 Slashing Weapon . | . . . . . . Piercing Weapon . | . . . . . . Special Melee Weapon . | . . . . . . Unidentified Prototypes 1 | . . . . . 1 Parts Lost 13 | . . . . 1 12 Power 1 | . . . . . 1 Propulsion 4 | . . . . . 4 Utility 4 | . . . . . 4 Weapon 4 | . . . . 1 3 Highest Loss Streak 9 | . . . . 1 9 To Critical Strikes . | . . . . . . Average Slot Usage (%) 90 | . 99 100 100 96 74 Engine 11 | . 14 14 14 14 7 Leg 23 | . 28 28 28 28 12 Device 12 | . 13 14 14 14 10 Storage 15 | . 14 14 14 14 18 Processor 2 | . . . . . 6 Energy Gun 1 | . . . . . 3 Ballistic Gun 19 | . 27 28 28 21 9 Special Weapon 1 | . . . . 2 1 Peak Build Rating 18 | 9 9 7 7 9 18 Average Rating 9 | 6 8 7 7 7 14 On Entrance 6 | . 9 7 7 7 8 Naked Turns . | . . . . . . Heaviest Build 33 | 12 14 14 14 22 33 Greatest Support 40 | 20 20 20 20 20 40 Greatest Overweight (x) 10 | . . . . 1 10 Average Overweight (x) . | . . . . . 1 Largest Inventory Capacity 15 | 8 8 8 15 8 15 Average Capacity 8 | 7 8 8 8 8 8 Most Carried 9 | 8 8 8 9 8 8 Average Carried 7 | 5 7 8 8 8 7 Final Capacity 15 | 8 8 8 8 8 15 Final Carried 8 | 8 8 8 8 8 1 Class Distribution -------------------- 100% | Mutant Dominant Class ---------------- Mutant | -10/Materials Mutant | -10/Mines Mutant | -10/Exiles Mutant | -9/Mines Mutant | -8/Materials Resources | -11 -10 -10 -10 -9 -8 ----------- Run | Yrd Mat Min Exi Min Mat Matter Collected 600 | 302 16 . . 156 126 Remotely . | . . . . . . Salvage Created 551 | 137 51 . . 96 267 Parts 34 | 7 6 . . 5 16 Haulers Intercepted . | . . . . . . Recyclers Shooed . | . . . . . . Parts Field Recycled . | . . . . . . Retrieved Matter . | . . . . . . Parts Self-Destructed . | . . . . . . Prevented . | . . . . . . Kills | -11 -10 -10 -10 -9 -8 ------- Run | Yrd Mat Min Exi Min Mat Combat Hostiles Destroyed 12 | . 3 . . 2 7 Melee 2 | . . . . . 2 Guns 7 | . 3 . . 2 2 AOE 2 | . . . . . 2 Classes Destroyed 8 | 2 1 . . 2 3 Builder 1 | . . . . . 1 Tunneler 2 | 2 . . . . . Recycler 1 | 1 . . . . . Swarmer 3 | . 3 . . . . Grunt 4 | . . . . 1 3 Brawler 1 | . . . . 1 . Sentry 3 | . . . . . 3 Heavy 1 | . . . . . 1 Best Kill Streak 3 | 2 2 . . 1 3 Combat Bots Only 3 | . 2 . . 1 3 Max Kills in Single Turn 2 | 1 1 . . 1 2 Gunslinging . | . . . . . . Exploded 2 | . . . . . 2 Melee 1 | . . . . . 1 Uniques/NPCs Destroyed . | . . . . . . Combat | -11 -10 -10 -10 -9 -8 -------- Run | Yrd Mat Min Exi Min Mat Hostile Shots Fired 163 | . 51 . . 18 94 Missed 53 | . 19 . . 5 29 Damage Taken 1853 | . 242 . . 229 1382 Core 508 | . 59 . . 33 416 Absorbed by Shields . | . . . . . . Core Remaining (%) 81 | 100 . . . 63 . Volleys Fired 56 | 8 11 . . 17 20 Largest 2 | 2 2 . . 2 2 Hottest 88 | 40 40 . . 40 88 Shots Fired 88 | 16 21 . . 23 28 Gun 80 | 16 20 . . 22 22 Cannon . | . . . . . . Launcher 8 | . 1 . . 1 6 Special . | . . . . . . Kinetic 71 | 16 20 . . 22 13 Thermal 9 | . . . . . 9 Explosive 8 | . 1 . . 1 6 Electromagnetic . | . . . . . . Robot Hit Streak 7 | 4 2 . . 7 7 Robot Miss Streak 5 | 3 5 . . 2 2 Penetration Max . | . . . . . . Secondary Targets . | . . . . . . Shots Hit Robots 57 | 10 7 . . 15 25 Core Hits 35 | 6 3 1 . 7 18 Critical Kills 1 | . 1 . . . . Critical Parts Destroyed 1 | . . . . . 1 Critical Strikes 2 | . 1 . . . 1 Destroy 1 | . 1 . . . . Smash 1 | . . . . . 1 Melee Attacks 9 | . . . . . 9 Impact 9 | . . . . . 9 Slashing . | . . . . . . Piercing . | . . . . . . Sneak Attacks . | . . . . . . Combat Hostiles . | . . . . . . Follow-up Attacks . | . . . . . . Damage Inflicted 1451 | 137 102 11 . 259 942 Guns 653 | 137 89 . . 182 245 Cannons . | . . . . . . Explosions 492 | . 13 . . 52 427 Melee 270 | . . . . . 270 Ramming 36 | . . 11 . 25 . Kinetic 524 | 137 89 . . 182 116 Thermal 129 | . . . . . 129 Explosive 492 | . 13 . . 52 427 Electromagnetic . | . . . . . . Impact 270 | . . . . . 270 Slashing . | . . . . . . Piercing . | . . . . . . Highest Corruption 4 | . . . . 4 . Average Corruption 4 | . . . . 4 . Corruption Purged . | . . . . . . Corruption Blocked . | . . . . . . Effects 8 | . . . . 8 . Message Errors 1 | . . . . 1 . Energy Discharges 3 | . . . . 3 . Parts Fused 1 | . . . . 1 . Data Loss (minor) 2 | . . . . 2 . Misfires 1 | . . . . 1 . Overload Shots . | . . . . . . Overflow Damage 37 | . . . . . 37 Projectiles . | . . . . . . Explosions . | . . . . . . Melee 37 | . . . . . 37 Knockbacks . | . . . . . . Impact . | . . . . . . Kinetic . | . . . . . . Secondary . | . . . . . . Self-Inflicted Damage 45 | . . . . 24 21 Shots 2 | . . . . 1 1 Rammed . | . . . . . . Targets Rammed 10 | . . 2 . 7 1 Kicked 10 | . . 2 . 7 1 Crushed . | . . . . . . Highest Temperature 29 | . . . . . 29 Average Temperature 12 | . . . . . 12 Received Heat Transfer 393 | . . . . 60 333 Siege Activations . | . . . . . . Robots Corrupted 1 | . . . . . 1 Combat Hostiles 1 | . . . . . 1 Parts Fried 1 | . . . . . 1 Impact Corruptions 2 | . . . . . 2 Robots Melted . | . . . . . . Combat Hostiles . | . . . . . . Parts Melted . | . . . . . . Heat Transferred 259 | . . . . . 259 Parts Sabotaged . | . . . . . . Parts Stolen . | . . . . . . Parts Stripped . | . . . . . . Power Chain Reactions . | . . . . . . Alert | -11 -10 -10 -10 -9 -8 ------- Run | Yrd Mat Min Exi Min Mat Peak Influence 158 | 15 146 56 . 65 158 Initial 56 | . 9 56 . . 3 Average 30 | 6 72 56 . 6 45 Maximum Alert Level . | . . . . . . Low Security (%) 100 | 100 100 100 . 100 100 Level 1 . | . . . . . . Level 2 . | . . . . . . Level 3 . | . . . . . . Level 4 . | . . . . . . Level 5 . | . . . . . . High Security . | . . . . . . Max Security . | . . . . . . Squads Dispatched 3 | . . . . 1 2 Investigation . | . . . . . . Extermination . | . . . . . . Reinforcement 2 | . . . . 1 1 Assault . | . . . . . . Garrison 1 | . . . . . 1 Intercept . | . . . . . . Searches Triggered . | . . . . . . Construction Impeded 1 | . . . . 1 . Haulers Reinforced . | . . . . . . Active Scanning Responses . | . . . . . . Cargo Convoy Interrupts . | . . . . . . Stealth | -11 -10 -10 -10 -9 -8 --------- Run | Yrd Mat Min Exi Min Mat Distress Signals 3 | . 1 . . . 2 Communications Jammed . | . . . . . . Distress Signals . | . . . . . . Times Spotted 21 | . 6 . . 3 12 Peak Tracking Total 5 | . 4 . . 2 5 Tactical Retreats 3 | . 2 . . 1 . Traps | -11 -10 -10 -10 -9 -8 ------- Run | Yrd Mat Min Exi Min Mat Traps Triggered . | . . . . . . Indirectly . | . . . . . . Trap Hack Attempts . | . . . . . . Triggered . | . . . . . . Disarmed . | . . . . . . Reprogrammed . | . . . . . . Reused . | . . . . . . Traps Extracted . | . . . . . . Installed . | . . . . . . Triggered . | . . . . . . Machines | -11 -10 -10 -10 -9 -8 ---------- Run | Yrd Mat Min Exi Min Mat Machines Disabled . | . . . . . . Max in Single Turn . | . . . . . . Machines Repaired . | . . . . . . Machines Dismantled . | . . . . . . Machines Sabotaged . | . . . . . . Overloaded Fab Kills . | . . . . . . Hacking | -11 -10 -10 -10 -9 -8 --------- Run | Yrd Mat Min Exi Min Mat Machines Accessed 1 | . . . 1 . . Terminals . | . . . . . . Fabricators . | . . . . . . Repair Stations . | . . . . . . Recycling Units . | . . . . . . Scanalyzers . | . . . . . . Garrison Access . | . . . . . . Total Hacks 23 | . . . 23 . . Successful 23 | . . . 23 . . Failed . | . . . . . . Catastrophic . | . . . . . . Database Lockouts . | . . . . . . Manual . | . . . . . . Terminals . | . . . . . . Fabricators . | . . . . . . Repair Stations . | . . . . . . Recycling Units . | . . . . . . Scanalyzers . | . . . . . . Garrison Access . | . . . . . . Terminal Hacks 23 | . . . 23 . . Record 23 | . . . 23 . . Fabricator Hacks . | . . . . . . Repair Station Hacks . | . . . . . . Recycling Unit Hacks . | . . . . . . Scanalyzer . | . . . . . . Garrison Access Hacks . | . . . . . . Unauthorized Hacks . | . . . . . . Terminals . | . . . . . . Fabricators . | . . . . . . Repair Stations . | . . . . . . Recycling Units . | . . . . . . Scanalyzers . | . . . . . . Garrison Access . | . . . . . . Data Cores Recovered . | . . . . . . Used . | . . . . . . Hacking Detections . | . . . . . . Full Trace Events . | . . . . . . Feedback Events . | . . . . . . Feedback Blocked . | . . . . . . Robot Schematics Acquired . | . . . . . . Robots Built . | . . . . . . Authchips . | . . . . . . Time . | . . . . . . Total Robot Build Rating . | . . . . . . Part Schematics Acquired . | . . . . . . Parts Built . | . . . . . . Authchips . | . . . . . . Time . | . . . . . . Total Part Build Rating . | . . . . . . Parts Repaired . | . . . . . . Time . | . . . . . . Parts Recycled . | . . . . . . Recycled Matter . | . . . . . . Retrieved Matter . | . . . . . . Retrieved Components . | . . . . . . Parts Scanalyzed . | . . . . . . Part Schematics Acquired . | . . . . . . Parts Damaged . | . . . . . . Bothacking | -11 -10 -10 -10 -9 -8 ------------ Run | Yrd Mat Min Exi Min Mat Used RIF Installer . | . . . . . . Robots Hacked . | . . . . . . Non-combat . | . . . . . . Combat . | . . . . . . Robot Hacks Applied . | . . . . . . Relay Couplers Released . | . . . . . . Fabnet Peak Effective % . | . . . . . . Robots Rewired . | . . . . . . Allies Hacked . | . . . . . . Hacks Repelled . | . . . . . . Allies | -11 -10 -10 -10 -9 -8 -------- Run | Yrd Mat Min Exi Min Mat Total Allies . | . . . . . . Largest Group . | . . . . . . Highest-Rated Group . | . . . . . . Highest-Rated Ally . | . . . . . . Total Orders . | . . . . . . Ally Attacks . | . . . . . . Total Damage . | . . . . . . Kills . | . . . . . . Allies Corrupted . | . . . . . . Allies Melted . | . . . . . . Intel | -11 -10 -10 -10 -9 -8 ------- Run | Yrd Mat Min Exi Min Mat Robot Analysis Total . | . . . . . . Derelict Logs Recovered 1 | . . . . 1 . Drone Launches . | . . . . . . Drone Recoveries . | . . . . . . Exploration | -11 -10 -10 -10 -9 -8 ------------- Run | Yrd Mat Min Exi Min Mat Turns Passed 2123 | 116 159 56 521 643 628 Spaces Moved 1352 | 64 99 45 430 471 243 Core 23 | 12 . . . . 11 Treads 25 | . . . . . 25 Legs 1304 | 52 99 45 430 471 207 Wheels . | . . . . . . Hover . | . . . . . . Flight . | . . . . . . Fastest Speed 50 | 50 120 120 120 120 160 Average Speed 136 | 106 120 120 120 125 201 Slowest Speed 550 | 120 120 120 120 190 550 Overloaded Moves . | . . . . . . Propulsion Burnouts . | . . . . . . Robots Hopped . | . . . . . . Cave-ins Triggered . | . . . . . . Exploration Rate (%) 36 | 4 20 16 78 77 24 Regions Visited 5 Branch Regions 3 Pre-discovered Areas 1 | . . . 1 . . Known Exits Taken . | . . . . . . Unknown Exits Taken 5 | 1 1 1 1 1 . Scrap Searched 1 | . . . . 1 . Spaces Dug . | . . . . . . Terrain Destroyed 76 | . 6 . . 11 59 Melee . | . . . . . . Projectile . | . . . . . . AOE 76 | . 6 . . 11 59 Terrain Rammed . | . . . . . . Walls Destroyed . | . . . . . . Machines Disabled . | . . . . . . Actions | -11 -10 -10 -10 -9 -8 --------- Run | Yrd Mat Min Exi Min Mat Total 1533 | 98 120 46 435 498 336 Wait 23 | . . . . . 23 Move 1347 | 63 98 44 429 470 243 Hop . | . . . . . . Pick Up 31 | 17 3 . 2 . 9 Fast Attach 6 | 1 1 . . 1 3 Attach 15 | 6 . . . . 9 Detach . | . . . . . . Swap 17 | . 3 . 2 2 10 Drop 19 | 3 4 . 2 1 9 Fire 56 | 8 11 . . 17 20 Melee 9 | . . . . . 9 Ram . | . . . . . . Kick 10 | . . 2 . 7 1 Crush . | . . . . . . Escape Stasis . | . . . . . . Rewire . | . . . . . . Trap . | . . . . . . Miscellaneous . | . . . . . . Route ------- -11/Scrapyard -10/Materials -10/Mines -10/Exiles (discovered 2 exits: [*Min x2]) -9/Mines -8/Materials (discovered 1 exit: [*Fac]) History --------- Turn | Location | Event 3 | -11/Scrapyard | Discovered new exit (range 15) 117 | -11/Scrapyard | Entered Materials 227 | -10/Materials | Discovered new exit (range 13) 234 | -10/Materials | Met 8R-AWN 276 | -10/Materials | Entered Mines 278 | -10/Mines | Followed 8R-AWN into the Mines 313 | -10/Mines | Build established: Mutant 327 | -10/Mines | Discovered new exit (range 5) 332 | -10/Mines | Entered Exiles 353 | -10/Exiles | Discovered new exit (range 14) 365 | -10/Exiles | Welcomed by 8R-AWN 388 | -10/Exiles | Met EX-HEX 477 | -10/Exiles | Met EX-DEC 510 | -10/Exiles | Learned location of Zion (-7) 615 | -10/Exiles | Visited The Gauntlet 837 | -10/Exiles | Discovered new exit (range 14) 853 | -10/Exiles | Entered Mines 882 | -9/Mines | Learned Materials emergency access door positions 1056 | -9/Mines | Discovered new exit (range 14) 1300 | -9/Mines | Received a Rocket Launcher from a helpful Derelict 1496 | -9/Mines | Entered Materials 1496 | -8/Materials | Evolved 4 slots: Propulsion x2, Utility x2 1813 | -8/Materials | Discovered new exit (range 15) 2098 | -8/Materials | Core integrity fell below 50% 2122 | -8/Materials | Garrison activated, responded to threat 2124 | -8/Materials | Self-destructed Last Messages --------------- 02093_ U-05 Engineer destroyed. 02094_ Penetrated by Slug. 02094_ Lgt. Treads destroyed. 02094_ Core Analyzer destroyed. 02094_ Critical hit (Blast). 02094_ Knocked back. 02101_ Slug penetrates Wall. 02102_ Rocket Launcher destroyed. 02105_ U-05 Engineer builds a Wall. 02106_ H-61 Shepherd destroyed. 02110_ The unstable cave ceiling collapses. 02110_ U-05 Engineer builds a Wall. 02113_ Imp. Sensor Array destroyed. 02113_ Critical hit (Burn: +37). 02118_ The unstable cave ceiling collapses. 02120_ U-05 Engineer lays Concrete. 02122_ Y-45 Defender calls for garrison reinforcements. 02122_ ALERT: Activating Garrison Access M001. 02123_ U-05 Engineer lays Concrete. Map ----- +----------------------------------------------------+ | #????????????# #?????? | | #????????????# ! #?????? | | ################+########+##?????? | | #???# #??????? | | < #???# #??????? | | #??## #??????? | | ##############+######## ######## | | # ## % + ## # | | # ##" # ## # | | # //##" """ # %## """ # | | # //##" """"" + ## """ # | | / ##T """"" ## ## """ # | | # ##" """"" ## ## [ # | | # # ##" """ ## + ! # | | # # ##" ????# g # # | | # # ## ?????# g # # | | # #####+#####+###?????# % + !! # | | # #???# #?????????????# # != # | | # #???# #?????????????# # ! # | | # #???# #????????????## ;###### | | # #???# #????????????# ###??? | | # ##??# #????????????# ; #??? | | #??# #????????????# u % #???? | | #??# #????????????# #???? | | #??# #????????????# = #???? | | #### ##### #??????# @ #??? | | + !% #??? | | ########## # "" # = ##??? | | #??????????# """ # ##???? | | #???????????? S" # #????? | | #???????????? # #????? | | #????????????####?## ##????? | | ####?????????????????? #?????? | | ?????????????????????? ! #?????? | | ?????????????????????## #?????? | | ??????????????????????## ##?????? | | ???????????????????????# ???????? | | ???????????????????????#Y ???????? | | ???????????????????????# ???????? | | ???????????????????????? ???????? | | ???????????????????????? ???????? | | ?????????????????????????????????? | | ?????????????????????????????????? | | ?????????????????????????????????? | | ?????????????????????????????????? | | ?????????????????????????????????? | | ?????????????????????????????????? | | ?????????????????????????????????? | | ?????????????????????????????????? | | ?????????????????????????????????? | +----------------------------------------------------+ Best States ------------- Heat Dissipation 31 Energy Generation 12 Energy Capacity 415 Matter Stores 300 Matter Capacity 300 Sight Range 16 Robot Scan Range 15 Terrain Scan Range 16 Terrain Scan Density 10 Evasion (%) 55 Melee Accuracy 5 Core Analysis 6 Recoil Reduction 2 Item Schematics ----------------- None Robot Schematics ------------------ None Fabricated ------------ Nothing Alien Tech Used ----------------- None Achievements -------------- Maybe Next Time I'll Detach My Launcher Challenges ------------ None Game ------ Seed ThunderSpectralTelecube Manual? 0 Play Time 00:22:36 Cumulative 14.4 hours Start 2024.11.02 @ 03:12:40 End 2024.11.02 @ 03:35:26 Sessions 1 Manual Loads 0 Difficulty Rogue Special Mode None Game No. 23 Rogue 23 Adventurer 0 Explorer 0 Win Type - Total 0 Types 0/0/0/0/0/0/0/0/0 Lore% 6 Gallery% 19 Achievement% 16 Wizard Run 0 Options --------- Layout 1 ASCII 0 Keyboard 0 Movement Mouse Keybinds 0 Fullscreen 1 Font 24/Smallcaps Map View 50x35 Zoom Use 0% Tactical HUD 1 Map Filters NONE Filters NONE Steam 1 RUN: 88a62912-3a3f-4243-9a54-ecb96f4cda55